Cogmind - Beta 12 @@@ ROGUE MODE // 2023.07.14 @ 01:36:02 Player: hanzu Result: Destroyed by S-43 Plague with Heavy Machine Gun Performance ------------- Evolutions (8) 4000 Regions Visited (22) 4400 Robots Destroyed (347) 1735 Value Destroyed (15541) 15541 Prototype IDs (76) 1520 Alien Tech Used (2) 400 Bonus (5511) 5511 TOTAL SCORE: 33107 Bonus ------- High Alert Combat Kills 2531 Follower Combat Kills 817 Entered Garrisons 600 Used RIF Installer 1500 Aligned with FarCom 300 Met Zhirov 300 Friendly Fire -537 Cogmind --------- Core Integrity 0/1450 Matter 285/300 Energy 79/100 System Corruption 4% Temperature Warning (362) Movement Core (250) Ox4 Location -2/Research Parts ------- > --- POWER (3) -------- (None) > --- PROPULSION (7) --- (None) > --- UTILITY (10) ----- (None) > --- WEAPON (3) ------- Enhanced Nova Cannon > --- INVENTORY (5) ---- Relay Coupler [NC] (24) Heavy Linear Accelerator Peak State ------------ > --- POWER ------------ Fusion Reactor Light Particle Reactor > --- PROPULSION ------- Improved Heavy Siege Treads Experimental Myomer Leg Experimental Myomer Leg Experimental Myomer Leg Experimental Myomer Leg > --- UTILITY ---------- Advanced Heat Sink Advanced Heat Sink Advanced Heat Sink Cargo Storage Unit Improved Weapon Cycler Layered Light Armor Plating Improved Focal Shield Advanced Thermal Shield > --- WEAPON ----------- Matter Neutralizer Matter Neutralizer Rocket Array > --- INVENTORY -------- Micro Antimatter Reactor Micro Antimatter Reactor Micro Antimatter Reactor Matter Compressor Relay Coupler [NC] Relay Coupler [Sentry] Phase Gun Phase Gun Phase Gun Disruptor Cannon HERF Cannon Coil Gun Magnetic Acceleration Cannon Magnetic Acceleration Cannon Magnetic Acceleration Cannon Mass Driver Hardcell Cannon Heavy Linear Accelerator Gamma Bomb Array Remote Datajack [Rating: 138] Favorites ----------- Power Neutrino Core Engine Improved Deuterium Engine Power Core Neutrino Core Reactor Micro Antimatter Reactor Propulsion Light Treads Treads Light Treads Leg Experimental Myomer Leg Wheel Armored Wheel Utility Large Storage Unit Device Advanced Heat Sink Storage Large Storage Unit Processor Advanced Targeting Computer Hackware Hacking Suite Protection Improved Medium Armor Plating Weapon Advanced Beam Cannon Energy Gun Gatling Laser Energy Cannon Advanced Beam Cannon Ballistic Gun Minigun Ballistic Cannon Heavy Linear Accelerator Launcher Heavy Rocket Launcher Special Weapon Remote Datajack Special Melee Weapon Improved Datajack Build | -11 -10 -10 -9 -9 -9 -8 -8 -8 -8 -7 -7 -7 -7 -6 -5 -4 -4 -4 -4 -3 -3 -2 ------- Run | Jun Mat Min Mat Min Exi Min Mat Gar Mat Fac Gar Fac Gar Fac Fac Fac Upp Upp Zhi Pro Res Res Slots Evolved 16 | . . . 2 . . . 2 . . 2 . . . 2 2 2 . . . . 2 2 Power 2 | . . . . . . . . . . . . . . 1 . . . . . . . 1 Propulsion 5 | . . . . . . . . . . 1 . . . 1 2 . . . . . . 1 Utility 8 | . . . 1 . . . 2 . . 1 . . . . . 2 . . . . 2 . Weapon 1 | . . . 1 . . . . . . . . . . . . . . . . . . . Parts Attached 298 | 6 10 . 20 6 1 1 32 20 8 32 20 5 15 12 10 50 7 9 6 4 22 2 Power 25 | 1 . . 2 1 . . 1 2 . 4 . 1 1 1 1 2 1 2 . . 4 1 Engine 7 | 1 . . 2 1 . . 1 . . 2 . . . . . . . . . . . . Core 12 | . . . . . . . . 2 . 2 . 1 1 1 1 2 1 1 . . . . Reactor 6 | . . . . . . . . . . . . . . . . . . 1 . . 4 1 Propulsion 45 | 2 . . 5 . . . 9 2 2 4 3 . 4 1 2 4 . 1 . 1 5 . Treads 39 | 2 . . 5 . . . 7 2 2 4 3 . 4 1 2 4 . 1 . 1 1 . Leg 4 | . . . . . . . . . . . . . . . . . . . . . 4 . Wheel 2 | . . . . . . . 2 . . . . . . . . . . . . . . . Hover . | . . . . . . . . . . . . . . . . . . . . . . . Flight . | . . . . . . . . . . . . . . . . . . . . . . . Utility 120 | 1 6 . 3 3 . . 10 8 3 13 8 3 7 7 2 27 4 2 5 . 8 . Device 63 | . 1 . 1 2 . . 4 3 1 9 5 . 3 5 1 15 1 1 4 . 7 . Storage 6 | 1 3 . . . . . 1 . . . . . . 1 . . . . . . . . Processor 10 | . . . 1 . . . 2 1 1 1 . . 1 1 . 2 . . . . . . Hackware 16 | . . . . . . . 2 1 . 3 3 1 . . 1 5 . . . . . . Protection 25 | . 2 . 1 1 . . 1 3 1 . . 2 3 . . 5 3 1 1 . 1 . Artifact . | . . . . . . . . . . . . . . . . . . . . . . . Weapon 108 | 2 4 . 10 2 1 1 12 8 3 11 9 1 3 3 5 17 2 4 1 3 5 1 Energy Gun 19 | 1 2 . 5 . . . 1 1 . 2 1 . 2 1 . . . 2 . 1 . . Energy Cannon 30 | . 2 . 2 2 . 1 4 4 1 . . . . 1 2 7 . 1 . 2 . 1 Ballistic Gun 8 | 1 . . 1 . . . 3 . . 2 . . . . . . 1 . . . . . Ballistic Cannon 22 | . . . . . . . . . 2 3 5 . 1 . 1 7 . 1 . . 2 . Launcher 17 | . . . 2 . . . 4 3 . 1 . . . 1 1 1 1 . . . 3 . Special Weapon 11 | . . . . . . . . . . 3 3 1 . . 1 2 . . 1 . . . Impact Weapon . | . . . . . . . . . . . . . . . . . . . . . . . Slashing Weapon . | . . . . . . . . . . . . . . . . . . . . . . . Piercing Weapon . | . . . . . . . . . . . . . . . . . . . . . . . Special Melee Weapon 1 | . . . . . 1 . . . . . . . . . . . . . . . . . Unidentified Prototypes 13 | . . . 4 . . . 1 . . 1 . . . 1 . . . . 4 . 2 . Corrupted Parts 2 | . . . . . . . . . . . . . . . . 2 . . . . . . System Corruption 14 | . . . . . . . . . . . . . . . . 14 . . . . . . Parts Lost 70 | . . . . . . . 10 8 . 7 1 . 1 . 3 4 4 7 . . 24 1 Power 12 | . . . . . . . . 2 . 1 . . . . 2 . 2 1 . . 3 1 Propulsion 18 | . . . . . . . 4 1 . 2 . . . . . 3 1 1 . . 6 . Utility 21 | . . . . . . . 3 2 . 1 . . . . 1 . 1 2 . . 11 . Weapon 19 | . . . . . . . 3 3 . 3 1 . 1 . . 1 . 3 . . 4 . Highest Loss Streak 17 | . . . . . . . 6 2 . 2 1 . 1 . 2 2 2 6 . . 17 1 To Critical Strikes 6 | . . . . . . . . . . . . . . . . 1 . 4 . . 1 . Average Slot Usage (%) 87 | . 96 100 99 100 100 100 97 96 99 95 96 89 83 69 75 75 71 66 61 68 74 . Engine 4 | . 14 14 11 11 11 11 9 2 . 4 . . . . 2 . . . . . . . Core 4 | . . . . . . . . 6 9 2 7 7 7 8 7 9 9 4 5 5 2 . Treads 17 | . 28 28 21 22 22 22 16 12 17 21 23 22 14 13 23 20 13 7 10 5 8 . Device 11 | . 3 14 11 11 11 11 14 12 9 3 9 4 11 6 9 11 11 16 18 21 31 . Storage 7 | . 19 14 11 11 11 11 9 9 9 7 7 7 7 6 5 5 5 5 5 5 3 . Processor 5 | . . . 6 . . . 2 9 9 8 15 15 15 13 5 1 3 . . . . . Hackware 6 | . . . . . . . 10 3 9 23 10 8 7 6 6 3 5 5 5 5 . . Protection 5 | . 2 . 4 11 11 11 7 8 9 . . 6 3 . . 7 6 8 5 5 3 . Energy Gun 6 | . 23 28 13 . . . 4 7 9 6 13 4 6 5 . . . 2 . 5 3 . Energy Cannon 7 | . 4 . 16 32 23 33 12 12 14 . . . . . 3 2 9 3 . 6 8 . Ballistic Gun 1 | . . . 2 . . . 7 1 . 2 . . . . . . 4 3 . . . . Ballistic Cannon 3 | . . . . . . . . . . 10 5 7 7 6 5 9 . 1 . . . . Naked Turns 171 | . . . . . . . . . . . . . . . . . . . . . 6 165 Heaviest Build 244 | 13 36 32 47 70 70 67 69 54 49 50 58 70 71 191 196 244 229 193 167 188 208 . Greatest Support 210 | 40 40 40 46 46 46 46 46 40 40 68 68 68 105 150 210 210 132 55 55 55 130 3 Greatest Overweight (x) 15 | . . . 15 1 1 1 1 4 1 2 . 1 1 1 . 1 2 7 3 6 4 . Average Overweight (x) . | . . . . 1 1 1 1 2 . . . . . . . . 1 4 2 5 2 . Largest Inventory Capacity 30 | 8 25 15 15 15 15 15 15 15 15 15 15 15 15 30 30 30 30 30 30 30 30 5 Average Capacity 19 | 6 13 15 15 15 15 15 15 15 15 15 15 15 15 28 30 30 30 30 30 30 29 5 Most Carried 30 | 5 13 14 15 15 15 15 15 15 15 15 15 15 15 23 29 30 30 29 27 27 30 5 Average Carried 17 | 2 9 13 13 14 14 15 12 14 13 13 14 14 14 16 26 28 29 25 22 26 24 4 Final Capacity 30 | 8 15 15 15 15 15 15 15 15 15 15 15 15 15 30 30 30 30 30 30 30 5 5 Final Carried 30 | 2 13 14 15 15 15 15 14 12 14 15 13 14 15 22 29 30 26 22 27 26 5 3 Class Distribution -------------------- 14% | Scavenger-Mutant 13% | Mutant 13% | Hauler-Mutant 13% | Scavenger-Skirmisher 8% | Skirmisher 5% | Tank 4% | Hacker-Skirmisher 4% | Hauler-Tank 4% | Commander-Gunner 4% | Scavenger-Tank 3% | Hauler-Gunner Dominant Class ---------------- Mutant | -10/Materials Mutant | -10/Mines Scavenger-Skirmisher | -9/Materials Tank | -9/Mines Mutant | -9/Exiles Skirmisher | -8/Mines Skirmisher | -8/Materials Scavenger-Mutant | -8/Garrison Scavenger-Skirmisher | -8/Materials Hacker-Skirmisher | -7/Factory Scavenger-Mutant | -7/Garrison Scavenger-Skirmisher | -7/Factory Commander-Gunner | -7/Garrison Hauler-Gunner | -6/Factory Hauler-Skirmisher | -5/Factory Hauler-Mutant | -4/Factory Hauler-Tank | -4/Upper Caves Hauler-Mutant | -4/Upper Caves Hauler-Mutant | -4/Zhirov Hauler-Mutant | -3/Proximity Caves Scavenger-Tank | -3/Research Mutant | -2/Research Resources | -11 -10 -10 -9 -9 -9 -8 -8 -8 -8 -7 -7 -7 -7 -6 -5 -4 -4 -4 -4 -3 -3 -2 ----------- Run | Jun Mat Min Mat Min Exi Min Mat Gar Mat Fac Gar Fac Gar Fac Fac Fac Upp Upp Zhi Pro Res Res Matter Collected 8949 | 236 124 200 253 97 . 20 540 660 96 920 479 224 834 264 350 2068 403 409 . 168 425 179 Remotely . | . . . . . . . . . . . . . . . . . . . . . . . Salvage Created 13864 | . 526 297 1463 451 . 161 2213 1302 205 558 313 76 1286 490 484 2165 735 160 . 115 712 152 Parts 641 | . 32 18 101 11 . 6 112 62 11 29 13 5 41 23 15 89 25 3 . 3 37 5 Haulers Intercepted 14 | . 1 . 6 . . . 4 . . . . . . . . 2 . . . . 1 . Recyclers Shooed 4 | . . . . . . . . . . . . 1 . . . 3 . . . . . . Parts Field Recycled . | . . . . . . . . . . . . . . . . . . . . . . . Retrieved Matter . | . . . . . . . . . . . . . . . . . . . . . . . Parts Self-Destructed 24 | . . . . . . . . . . . . . . . . . 21 . . 3 . . Prevented . | . . . . . . . . . . . . . . . . . . . . . . . Kills | -11 -10 -10 -9 -9 -9 -8 -8 -8 -8 -7 -7 -7 -7 -6 -5 -4 -4 -4 -4 -3 -3 -2 ------- Run | Jun Mat Min Mat Min Exi Min Mat Gar Mat Fac Gar Fac Gar Fac Fac Fac Upp Upp Zhi Pro Res Res Combat Hostiles Destroyed 281 | . 10 5 28 11 . 3 46 32 4 19 7 2 23 12 10 30 15 4 . 2 14 4 Melee 1 | . . . . . . . . . . . . . . . . 1 . . . . . . Guns 61 | . 5 5 10 . . . 8 12 1 4 7 . 5 2 . . 1 . . 1 . . Cannons 159 | . 5 . 11 11 . 2 25 13 1 15 . 2 18 4 4 23 9 2 . . 10 4 AOE 45 | . . . 6 . . . 12 6 1 . . . . 6 3 4 4 1 . . 2 . Classes Destroyed 23 | . 7 1 2 1 . . 2 3 . . . . 2 2 . . 1 1 . 1 . . Worker 10 | . 1 . 1 . . . 3 . . . . . . 1 . 4 . . . . . . Builder 7 | . . . 1 . . . 2 . . . . . . . . 1 . . . . 3 . Tunneler 4 | . . 2 . . . . 1 . . . . . . . . 1 . . . . . . Hauler 14 | . 1 . 6 . . . 4 . . . . . . . . 2 . . . . 1 . Recycler 9 | . 2 2 . 1 . . . . . . . . . . . 4 . . . . . . Carrier 1 | . . . . . . . . . . . . . . 1 . . . . . . . . Mechanic 1 | . . . . . . . . . . . . . 1 . . . . . . . . . Operator 9 | . 2 . 3 . . . 2 . . . . 1 . . . 1 . . . . . . Drone 1 | . . . . . . . . . . . . . . . . . . . . 1 . . Watcher 16 | . 1 . 5 . . . 5 . . 1 . . . 1 1 2 . . . . . . Swarmer 49 | . 3 3 7 . . . 9 6 . 3 3 . . . . . 11 . . . . 4 Saboteur 1 | . . . . . . . . . . . . . . 1 . . . . . . . . Grunt 117 | . 7 2 14 3 . 3 24 20 2 6 . 1 9 8 5 6 4 . . . 3 . Brawler 7 | . . . . . . . 3 . . 1 . . 2 1 . . . . . . . . Duelist 4 | . . . . . . . . 1 . . . . 1 1 . 1 . . . . . . Protector 2 | . . . . . . . 1 . . . . . . . . 1 . . . . . . Sentry 46 | . . . 7 2 . . 9 3 2 6 3 1 6 . 2 5 . . . . . . Hunter 13 | . . . . . . . . 1 . . . . 1 . 1 2 . 4 . . 4 . Programmer 33 | . . . . . . . . 1 . 3 1 . 3 1 2 15 . . . . 7 . Behemoth 2 | . . . . . . . . . . . . . 1 . . . . . . 1 . . Decomposer 1 | . . . . . . . . . . . . . . . . . 1 . . . . . Samaritan 2 | . . . . . . . . . . . . . . . . . 2 . . . . . Assembled 6 | . . . . 6 . . . . . . . . . . . . . . . . . . Mutant 1 | . . . . . . . . . . . . . . . . . . 1 . . . . Best Kill Streak 22 | . 3 3 9 6 . 2 22 7 2 3 4 1 3 5 5 6 4 2 . 1 7 4 Combat Bots Only 18 | . 3 3 8 6 . 2 18 7 2 3 4 1 3 5 5 4 4 2 . 1 5 4 Max Kills in Single Turn 6 | . 1 1 3 1 . 1 6 3 1 1 1 1 1 3 3 4 3 1 . 1 4 1 Gunslinging . | . . . . . . . . . . . . . . . . . . . . . . . Exploded 4 | . . . 3 . . . 3 2 1 . . . . 3 3 4 2 1 . . 2 . Melee 1 | . . . . . . . . . . . . . . . . 1 . . . . . . Uniques/NPCs Destroyed . | . . . . . . . . . . . . . . . . . . . . . . . Combat | -11 -10 -10 -9 -9 -9 -8 -8 -8 -8 -7 -7 -7 -7 -6 -5 -4 -4 -4 -4 -3 -3 -2 -------- Run | Jun Mat Min Mat Min Exi Min Mat Gar Mat Fac Gar Fac Gar Fac Fac Fac Upp Upp Zhi Pro Res Res Damage Taken 22198 | . 185 134 489 250 . 201 2059 1735 36 1835 587 235 1208 520 1077 2982 1190 1527 . 46 4290 1612 Core 4169 | . 48 24 45 40 . 17 174 317 . 289 60 17 103 36 33 386 126 139 . . 859 1456 Absorbed by Shields 4 | . . . . . . . . 4 . . . . . . . . . . . . . . Redirected to Shielding 158 | . . . . . . . . . . . . . . . . . . . . 20 138 . Regen/Repaired (Parts) 1225 | . . . . . . . 192 . 203 . 88 41 105 . 596 . . . . . . . Core Remaining (%) 61 | 100 . 71 . . . 74 . . 10 . . . 33 95 96 . . . . 39 33 . Volleys Fired 823 | . 46 18 59 20 . 8 95 86 6 56 36 19 92 19 38 110 26 28 4 9 38 10 Largest 3 | . 2 2 3 3 . 3 3 3 3 3 3 2 2 2 2 3 3 3 1 3 3 1 Hottest 298 | . 130 130 198 217 . 205 223 230 230 171 208 163 171 171 173 206 205 241 5 298 298 120 Shots Fired 1715 | . 88 36 163 52 . 18 225 184 18 142 60 23 131 36 56 209 77 60 4 23 100 10 Gun 594 | . 67 36 98 . . . 56 85 6 38 34 5 83 13 . . 24 26 . 10 13 . Cannon 1038 | . 21 . 62 52 . 18 160 78 12 99 19 12 48 19 54 198 52 28 . 13 83 10 Launcher 51 | . . . 3 . . . 9 21 . . . . . 4 1 2 1 6 . . 4 . Special 32 | . . . . . . . . . . 5 7 6 . . 1 9 . . 4 . . . Kinetic 590 | . . . 23 . . . 34 54 . 121 19 12 48 19 18 162 24 34 . . 22 . Thermal 985 | . 88 36 137 41 . 16 155 109 18 16 34 5 83 13 36 19 52 20 . 23 74 10 Explosive 50 | . . . 3 . . . 9 21 . . . . . 4 1 2 1 6 . . 3 . Electromagnetic 58 | . . . . 11 . 2 27 . . . . . . . . 17 . . . . 1 . Robot Hit Streak 64 | . 7 13 7 5 . 9 17 15 11 15 20 24 64 10 3 21 14 7 3 2 8 10 Robot Miss Streak 10 | . 5 3 5 9 . 1 5 3 5 2 7 2 4 4 3 5 3 5 1 10 5 1 Penetration Max . | . . . . . . . . . . . . . . . . . . . . . . . Secondary Targets 4 | . . . 1 . . . . 3 . . . . . . . . . . . . . . Max Gunslinging Chain 1 | . . . 1 . . . . 1 . . . . . . . . . . . . . . Capacitor 30 | . . . . . . . . . . . . . . . . 30 . . . . . . Shots Hit Robots 1016 | . 48 24 85 15 3 13 133 101 11 103 37 16 109 21 28 129 43 31 3 4 50 9 Core Hits 695 | . 22 11 58 12 . 5 92 55 3 36 23 5 102 48 25 84 24 19 . 1 64 6 Critical Kills 15 | . . . 2 . . 1 1 1 1 . . . . 1 2 . 1 1 . 1 3 . Critical Parts Destroyed 1 | . . . . . . . . . . . . . 1 . . . . . . . . . Critical Strikes 49 | . 1 1 5 . . 1 1 3 2 9 . 1 5 2 3 8 1 2 . 1 3 . Burn 10 | . 1 1 3 . . . . 2 1 2 . . . . . . . . . . . . Meltdown 13 | . . . 2 . . 1 1 . 1 . . . . . 2 . 1 1 . 1 3 . Destroy 3 | . . . . . . . . 1 . . . . 1 1 . . . . . . . . Blast 22 | . . . . . . . . . . 7 . 1 4 1 1 7 . 1 . . . . Corrupt 1 | . . . . . . . . . . . . . . . . 1 . . . . . . Melee Attacks 3 | . . . . . 3 . . . . . . . . . . . . . . . . . Impact . | . . . . . . . . . . . . . . . . . . . . . . . Slashing . | . . . . . . . . . . . . . . . . . . . . . . . Piercing . | . . . . . . . . . . . . . . . . . . . . . . . Sneak Attacks 3 | . . . . . 3 . . . . . . . . . . . . . . . . . Combat Hostiles . | . . . . . . . . . . . . . . . . . . . . . . . Follow-up Attacks . | . . . . . . . . . . . . . . . . . . . . . . . Damage Inflicted 38675 | . 842 380 1852 482 . 286 5315 3054 300 2560 712 793 5107 2079 1738 6025 1566 1456 . 160 3555 413 Guns 8453 | . 631 380 849 . . . 679 1072 112 605 596 152 2295 238 . . 231 325 . 70 218 . Cannons 22291 | . 211 . 713 482 . 286 2604 1324 188 1946 116 641 2812 802 1298 5259 1064 386 . 90 1687 382 Explosions 7817 | . . . 284 . . . 2032 658 . . . . . 1039 430 712 271 745 . . 1646 . Melee . | . . . . . . . . . . . . . . . . . . . . . . . Ramming 114 | . . . 6 . . . . . . 9 . . . . 10 54 . . . . 4 31 Kinetic 13693 | . . . 90 . . . 430 676 . 2221 116 641 2812 802 580 4221 231 474 . . 399 . Thermal 15937 | . 842 380 1472 265 . 227 2284 1720 300 330 596 152 2295 238 718 644 1189 237 . 160 1506 382 Explosive 7339 | . . . 284 . . . 2032 658 . . . . . 1039 430 521 146 745 . . 1484 . Electromagnetic 1592 | . . . . 217 . 59 569 . . . . . . . . 585 . . . . 162 . Impact . | . . . . . . . . . . . . . . . . . . . . . . . Slashing . | . . . . . . . . . . . . . . . . . . . . . . . Piercing . | . . . . . . . . . . . . . . . . . . . . . . . Highest Corruption 15 | . 1 1 . . . . . 1 1 1 1 1 2 1 1 15 15 15 15 15 13 4 Average Corruption 6 | . 1 1 . . . . . 1 1 1 1 1 1 1 1 7 15 15 15 15 8 2 Corruption Purged 14 | . . . . . . . . . . . . . . . . 14 . . . . . . Corruption Blocked . | . . . . . . . . . . . . . . . . . . . . . . . Effects 334 | . 3 5 . . . . . 2 6 3 6 7 24 3 4 67 46 54 26 59 18 1 Message Errors 72 | . 2 2 . . . . . . . 1 . 1 7 . 1 15 10 9 7 14 3 . Matter Fused 70 | . . . . . . . . 1 1 . 1 . 6 2 1 15 12 15 6 5 5 . Heat Flow Errors 47 | . 1 1 . . . . . . 2 1 . . 3 1 1 7 3 9 6 9 3 . Energy Discharges 42 | . . 1 . . . . . . 1 . 1 2 4 . . 11 3 5 4 7 3 . Parts Rejected 5 | . . . . . . . . . . . . . . . . 3 . . . 1 1 . Parts Fused 3 | . . . . . . . . . . . . . . . 1 . . . . 2 . . Data Loss (minor) 41 | . . 1 . . . . . 1 1 1 3 2 1 . . 5 8 7 1 9 . 1 Data Loss (major) 11 | . . . . . . . . . . . . . . . . 3 1 2 . 5 . . Misfires 16 | . . . . . . . . . . . 1 . 2 . . 3 5 2 . 2 1 . Alerts 15 | . . . . . . . . . 1 . . 1 . . . 2 3 2 2 4 . . Misdirections 2 | . . . . . . . . . . . . . . . . 2 . . . . . . Weapon Failures 10 | . . . . . . . . . . . . 1 1 . . 1 1 3 . 1 2 . Overload Shots . | . . . . . . . . . . . . . . . . . . . . . . . Overflow Damage 1377 | . . . 1 . . . 119 59 2 15 . 112 399 132 47 236 134 38 . . 56 27 Projectiles 1282 | . . . . . . . 82 24 2 15 . 112 399 125 47 231 134 29 . . 55 27 Explosions 95 | . . . 1 . . . 37 35 . . . . . 7 . 5 . 9 . . 1 . Melee . | . . . . . . . . . . . . . . . . . . . . . . . Knockbacks 58 | . . . . . . . . . . 10 1 2 7 3 3 26 . 2 . . 3 1 Impact 1 | . . . . . . . . . . . . . . . . . . . . . . 1 Kinetic 52 | . . . . . . . . . . 10 1 2 7 3 3 22 . 2 . . 2 . Secondary 5 | . . . . . . . . . . . . . . . . 4 . . . . 1 . Self-Inflicted Damage 538 | . . . . . . . 29 204 . . . . . . . . . 244 . . 48 13 Shots 19 | . . . . . . . 1 6 . . . . . . . . . 10 . . 2 . Rammed 16 | . . . . . . . . . . 3 . . . . 1 3 . . . . 1 8 Targets Rammed 18 | . . . 1 . . . . . . 3 . . . . 1 4 . . . . 1 8 Kicked . | . . . . . . . . . . . . . . . . . . . . . . . Crushed 2 | . . . 1 . . . . . . . . . . . . 1 . . . . . . Highest Temperature 625 | . 396 138 372 492 . 325 495 509 501 324 191 80 241 367 430 625 215 365 224 309 616 362 Average Temperature 124 | . 133 47 81 183 . 165 138 120 169 76 47 29 59 112 130 162 74 111 89 109 202 198 Received Heat Transfer 4810 | . 84 30 141 27 . 135 900 711 18 546 126 84 369 220 225 108 274 . . 9 785 18 Effects 71 | . 4 . 1 3 . 3 8 3 2 3 . . . . 2 25 . 2 . . 15 . Shutdowns 20 | . . . . 1 . . 3 1 1 . . . . . 1 9 . 2 . . 2 . Energy Bleed 12 | . 1 . 1 1 . . 3 . . . . . . . 1 3 . . . . 2 . Interference 21 | . 3 . . . . 3 . . . 3 . . . . . 8 . . . . 4 . Matter Decay 3 | . . . . 1 . . . . . . . . . . . 1 . . . . 1 . Short Circuit 4 | . . . . . . . 1 . 1 . . . . . . 1 . . . . 1 . Damage (minor) 6 | . . . . . . . 1 2 . . . . . . . 2 . . . . 1 . Damage (major) 3 | . . . . . . . . . . . . . . . . . . . . . 3 . Damage (core) 2 | . . . . . . . . . . . . . . . . 1 . . . . 1 . Siege Activations . | . . . . . . . . . . . . . . . . . . . . . . . Robots Corrupted 3 | . . . . . . . . . . . . . . . . 3 . . . . . . Combat Hostiles 2 | . . . . . . . . . . . . . . . . 2 . . . . . . Parts Fried 5 | . . . . . . . 2 . . . . . . . . 3 . . . . . . Impact Corruptions . | . . . . . . . . . . . . . . . . . . . . . . . Robots Melted 16 | . . . 2 . . 1 1 1 1 . . . 1 . 3 . 1 1 . 1 3 . Combat Hostiles 13 | . . . 1 . . 1 1 1 1 . . . . . 3 . 1 1 . 1 2 . Parts Melted 61 | . 1 . 5 2 . 1 8 13 . . 2 . 12 . 3 2 3 . . . 8 1 Heat Transferred 27619 | . 2035 962 3108 498 . 407 4056 2885 570 719 1350 325 4783 333 1100 850 1455 296 . 148 1406 333 Parts Sabotaged 1 | . . . . . . . . . . . . . . 1 . . . . . . . . Parts Stolen . | . . . . . . . . . . . . . . . . . . . . . . . Parts Stripped . | . . . . . . . . . . . . . . . . . . . . . . . Power Chain Reactions 1 | . . . . . . . . . . . . . . . . 1 . . . . . . Missiles Intercepted . | . . . . . . . . . . . . . . . . . . . . . . . Alert | -11 -10 -10 -9 -9 -9 -8 -8 -8 -8 -7 -7 -7 -7 -6 -5 -4 -4 -4 -4 -3 -3 -2 ------- Run | Jun Mat Min Mat Min Exi Min Mat Gar Mat Fac Gar Fac Gar Fac Fac Fac Upp Upp Zhi Pro Res Res Peak Influence 1630 | . 170 179 861 304 . 100 794 1630 800 262 483 345 1583 945 744 962 . . . . 923 375 Initial 923 | . . 29 1 304 . . 39 230 794 137 8 253 161 830 445 364 . . . . 923 195 Average 459 | . 68 48 568 188 . 7 438 887 469 165 237 242 861 820 591 565 . . . . 531 215 Maximum Alert Level 5 | . 1 . 3 1 . . 3 5 3 1 2 1 4 3 3 3 . . . . 3 1 Low Security (%) 29 | 100 99 100 6 60 . 100 23 . . 70 35 34 1 . . . . . . . 6 66 Level 1 21 | . . . 24 39 . . 14 6 62 29 54 65 2 . . 34 . . . . 31 33 Level 2 22 | . . . 25 . . . 49 33 10 . 10 . 39 10 69 29 . . . . 32 . Level 3 21 | . . . 44 . . . 12 32 26 . . . 35 89 30 36 . . . . 29 . Level 4 4 | . . . . . . . . 21 . . . . 20 . . . . . . . . . Level 5 . | . . . . . . . . 6 . . . . . . . . . . . . . . High Security . | . . . . . . . . . . . . . . . . . . . . . . . Max Security . | . . . . . . . . . . . . . . . . . . . . . . . Squads Dispatched 59 | . 2 . 6 1 . . 7 . . 8 . 1 . 5 4 15 . . . . 9 1 Investigation 9 | . . . 3 1 . . 2 . . 1 . . . . 1 . . . . . 1 . Extermination 18 | . . . . . . . . . . 5 . . . 2 1 7 . . . . 3 . Reinforcement 11 | . 2 . 3 . . . 2 . . . . 1 . . . 1 . . . . 1 1 Assault 11 | . . . . . . . 3 . . . . . . 3 2 3 . . . . . . Garrison 10 | . . . . . . . . . . 2 . . . . . 4 . . . . 4 . Intercept . | . . . . . . . . . . . . . . . . . . . . . . . Searches Triggered 3 | . . . . . . . . . . . . . . . . . . . . . 3 . Construction Impeded 1 | . . . . . . . . . . . . . . . . . . . . . 1 . Haulers Reinforced 1 | . . . . . . . . . . . . . . . . 1 . . . . . . Active Scanning Responses . | . . . . . . . . . . . . . . . . . . . . . . . Cargo Convoy Interrupts 1 | . . . . . . . . . . 1 . . . . . . . . . . . . Stealth | -11 -10 -10 -9 -9 -9 -8 -8 -8 -8 -7 -7 -7 -7 -6 -5 -4 -4 -4 -4 -3 -3 -2 --------- Run | Jun Mat Min Mat Min Exi Min Mat Gar Mat Fac Gar Fac Gar Fac Fac Fac Upp Upp Zhi Pro Res Res Distress Signals 12 | . . . 4 . . . 2 . . . . 1 . 1 . 1 . . . 1 1 1 Communications Jammed . | . . . . . . . . . . . . . . . . . . . . . . . Distress Signals . | . . . . . . . . . . . . . . . . . . . . . . . Times Spotted 437 | . 20 6 46 13 . 4 62 35 5 25 14 7 26 22 26 45 16 4 . 12 29 20 Peak Tracking Total 20 | . 3 3 6 5 . 3 6 7 2 5 4 2 4 6 13 6 5 2 . 2 8 20 Tactical Retreats 16 | . . 1 . . . 2 2 1 . 1 . . 2 . 1 . . . . . 4 2 Traps | -11 -10 -10 -9 -9 -9 -8 -8 -8 -8 -7 -7 -7 -7 -6 -5 -4 -4 -4 -4 -3 -3 -2 ------- Run | Jun Mat Min Mat Min Exi Min Mat Gar Mat Fac Gar Fac Gar Fac Fac Fac Upp Upp Zhi Pro Res Res Traps Triggered 25 | . 1 . . 1 . . 1 13 . . . 1 2 . . 4 . . . . 1 1 Indirectly 3 | . . . . . . . . . . . . . . . . 3 . . . . . . Trap Hack Attempts . | . . . . . . . . . . . . . . . . . . . . . . . Triggered . | . . . . . . . . . . . . . . . . . . . . . . . Disarmed . | . . . . . . . . . . . . . . . . . . . . . . . Reprogrammed 6 | . . . . . . . 6 . . . . . . . . . . . . . . . Reused . | . . . . . . . . . . . . . . . . . . . . . . . Traps Extracted . | . . . . . . . . . . . . . . . . . . . . . . . Installed . | . . . . . . . . . . . . . . . . . . . . . . . Triggered 4 | . . . . . . . . . . 2 . . . . . . 2 . . . . . Power Sources Rigged 32 | . . . . . . . . 2 1 6 4 . 8 6 . . . . . . 5 . Exploded 19 | . . . . . . . . 2 1 3 . . 7 2 . . . . . . 4 . Machines | -11 -10 -10 -9 -9 -9 -8 -8 -8 -8 -7 -7 -7 -7 -6 -5 -4 -4 -4 -4 -3 -3 -2 ---------- Run | Jun Mat Min Mat Min Exi Min Mat Gar Mat Fac Gar Fac Gar Fac Fac Fac Upp Upp Zhi Pro Res Res Machines Disabled 40 | . 1 . 3 1 . . 3 4 . . 3 . 4 3 7 6 4 . . . 1 . Max in Single Turn 3 | . 1 . 1 1 . . 1 2 . . 1 . 2 1 3 2 3 . . . 1 . Garrison Access 2 | . . . . . . . . . . 1 . . . . . 1 . . . . . . Garrison Relay 6 | . . . . . . . . 2 . . 3 . 1 . . . . . . . . . Phase Generator 2 | . . . . . . . . 1 . . . . 1 . . . . . . . . . Machines Repaired . | . . . . . . . . . . . . . . . . . . . . . . . Machines Sabotaged . | . . . . . . . . . . . . . . . . . . . . . . . Overloaded Fab Kills . | . . . . . . . . . . . . . . . . . . . . . . . Hacking | -11 -10 -10 -9 -9 -9 -8 -8 -8 -8 -7 -7 -7 -7 -6 -5 -4 -4 -4 -4 -3 -3 -2 --------- Run | Jun Mat Min Mat Min Exi Min Mat Gar Mat Fac Gar Fac Gar Fac Fac Fac Upp Upp Zhi Pro Res Res Machines Accessed 97 | . 9 . 14 2 2 . 14 2 5 11 2 9 2 6 4 5 . . 9 . 1 . Terminals 55 | . 6 . 9 . . . 10 2 4 6 2 5 2 2 4 2 . . . . 1 . Fabricators 3 | . . . . . . . . . . 1 . . . 1 . 1 . . . . . . Repair Stations 8 | . 1 . 1 . . . 1 . 1 . . 2 . 1 . 1 . . . . . . Recycling Units 7 | . 2 . 2 . . . 1 . . 1 . . . 1 . . . . . . . . Scanalyzers 5 | . . . 2 . . . 1 . . . . 1 . 1 . . . . . . . . Garrison Access 6 | . . . . . . . 1 . . 3 . 1 . . . 1 . . . . . . Total Hacks 316 | . 29 . 50 2 2 . 52 4 22 29 6 25 4 17 13 10 . . 48 . 3 . Successful 199 | . 13 . 29 2 2 . 35 2 15 18 1 11 . 11 6 5 . . 48 . 1 . Failed 113 | . 15 . 20 . . . 16 2 6 11 5 14 4 6 7 5 . . . . 2 . Catastrophic 15 | . 3 . 4 . . . 3 . 1 1 1 . . 1 . 1 . . . . . . Database Lockouts 4 | . 1 . 1 . . . 1 . 1 . . . . . . . . . . . . . Manual 119 | . 21 . 23 . 1 . 21 . 15 16 2 6 . 5 8 1 . . . . . . Terminals 173 | . 22 . 29 . . . 37 4 17 15 6 14 4 5 13 4 . . . . 3 . Fabricators 3 | . . . . . . . . . . 1 . . . 1 . 1 . . . . . . Repair Stations 31 | . 1 . 3 . . . 8 . 5 . . 9 . 2 . 3 . . . . . . Recycling Units 21 | . 6 . 4 . . . 2 . . 5 . . . 4 . . . . . . . . Scanalyzers 24 | . . . 14 . . . 4 . . . . 1 . 5 . . . . . . . . Garrison Access 12 | . . . . . . . 1 . . 8 . 1 . . . 2 . . . . . . Terminal Hacks 115 | . 6 . 8 2 2 . 21 2 8 4 1 4 . 2 4 2 . . 48 . 1 . Record 41 | . . . . . 1 . 1 . . . . . . 1 1 . . . 36 . 1 . Part Schematic 5 | . . . . . . . . . . 1 . . . . . . . . 4 . . . Robot Analysis 24 | . 4 . 5 . . . 4 . 5 1 . 1 . . . . . . 4 . . . Prototype ID Bank 9 | . 1 . 1 . . . 3 . . . . . . . . . . . 4 . . . Open Door 2 | . . . . 2 . . . . . . . . . . . . . . . . . . Level Access Points 2 | . . . . . . . 1 . 1 . . . . . . . . . . . . . Branch Access Points 2 | . . . . . . . 1 . . . . . . . 1 . . . . . . . Emergency Access Points 3 | . . . . . . . . 1 . . 1 . . . . 1 . . . . . . Machine Index 1 | . . . . . . . . . . . . 1 . . . . . . . . . . Terminal Index 4 | . . . 1 . . . 1 . . . . . . . 1 1 . . . . . . Garrison Index 3 | . . . . . . . 1 . . 1 . 1 . . . . . . . . . . Alert Level 1 | . . . . . . . 1 . . . . . . . . . . . . . . . Unreport Threat 7 | . . . . . . . 4 . 2 1 . . . . . . . . . . . . Locate Traps 2 | . . . 1 . . . 1 . . . . . . . . . . . . . . . Reprogram Traps 2 | . . . . . . . 2 . . . . . . . . . . . . . . . Extermination Status 1 | . . . . . . . . . . . . 1 . . . . . . . . . . Hauler Manifests 1 | . 1 . . . . . . . . . . . . . . . . . . . . . Zone Layout 3 | . . . . . . . 1 . . . . . . 1 1 . . . . . . . Patrol Navigation 1 | . . . . . . . . 1 . . . . . . . . . . . . . . EX-Prototype ID Bank 1 | . . . . . 1 . . . . . . . . . . . . . . . . . Fabricator Hacks 3 | . . . . . . . . . . 1 . . . 1 . 1 . . . . . . Network Status 2 | . . . . . . . . . . 1 . . . 1 . . . . . . . . Build 1 | . . . . . . . . . . . . . . . . 1 . . . . . . Repair Station Hacks 16 | . . . 1 . . . 6 . 4 . . 4 . . . 1 . . . . . . Scan Component 10 | . . . 1 . . . 3 . 2 . . 3 . . . 1 . . . . . . Repair 6 | . . . . . . . 3 . 2 . . 1 . . . . . . . . . . Recycling Unit Hacks 6 | . 2 . 2 . . . 1 . . 1 . . . . . . . . . . . . Retrieve Matter 1 | . . . 1 . . . . . . . . . . . . . . . . . . . Retrieve Components 5 | . 2 . 1 . . . 1 . . 1 . . . . . . . . . . . . Scanalyzer 20 | . . . 12 . . . 4 . . . . . . 4 . . . . . . . . Insert Component 10 | . . . 6 . . . 2 . . . . . . 2 . . . . . . . . Analyze 10 | . . . 6 . . . 2 . . . . . . 2 . . . . . . . . Garrison Access Hacks 6 | . . . . . . . 1 . . 3 . 1 . . . 1 . . . . . . Unlock Access 3 | . . . . . . . 1 . . 1 . 1 . . . . . . . . . . Seal Access 2 | . . . . . . . . . . 1 . . . . . 1 . . . . . . Coupler Status 1 | . . . . . . . . . . 1 . . . . . . . . . . . . Unauthorized Hacks 33 | . 5 . 6 . . . 2 . 3 9 . 2 . 4 2 . . . . . . . Terminals 22 | . 4 . 5 . . . 2 . 3 3 . 1 . 2 2 . . . . . . . Assimilate 3 | . . . . . . . . . 1 1 . . . 1 . . . . . . . . Botnet 15 | . 3 . 4 . . . 1 . 1 2 . 1 . 1 2 . . . . . . . Operators 4 | . 1 . 1 . . . 1 . 1 . . . . . . . . . . . . . Fabricators . | . . . . . . . . . . . . . . . . . . . . . . . Repair Stations 2 | . . . . . . . . . . . . 1 . 1 . . . . . . . . Mechanics 2 | . . . . . . . . . . . . 1 . 1 . . . . . . . . Recycling Units 6 | . 1 . 1 . . . . . . 3 . . . 1 . . . . . . . . Monitor 1 | . . . . . . . . . . 1 . . . . . . . . . . . . Recyclers 4 | . 1 . 1 . . . . . . 1 . . . 1 . . . . . . . . Mask 1 | . . . . . . . . . . 1 . . . . . . . . . . . . Scanalyzers . | . . . . . . . . . . . . . . . . . . . . . . . Garrison Access 3 | . . . . . . . . . . 3 . . . . . . . . . . . . Reprogram 1 | . . . . . . . . . . 1 . . . . . . . . . . . . Intercept 1 | . . . . . . . . . . 1 . . . . . . . . . . . . Watchers 1 | . . . . . . . . . . 1 . . . . . . . . . . . . Data Cores Recovered 2 | . . . 1 . . . . . . . . 1 . . . . . . . . . . Used 1 | . . . 1 . . . . . . . . . . . . . . . . . . . Hacking Detections 76 | . 9 . 13 . . . 11 2 5 9 2 9 2 5 4 4 . . . . 1 . Full Trace Events 10 | . 3 . 5 . . . . . . 1 . . . . 1 . . . . . . . Feedback Events . | . . . . . . . . . . . . . . . . . . . . . . . Feedback Blocked . | . . . . . . . . . . . . . . . . . . . . . . . Robot Schematics Acquired . | . . . . . . . . . . . . . . . . . . . . . . . Robots Built 3 | . . . . . . . . . . . . . . . . 3 . . . . . . Authchips 1 | . . . . . . . . . . . . . . . . 1 . . . . . . Time 76 | . . . . . . . . . . . . . . . . 76 . . . . . . Total Robot Build Rating 15 | . . . . . . . . . . . . . . . . 15 . . . . . . Part Schematics Acquired 14 | . . . 6 . . . 2 . . 1 . . . 1 . . . . 4 . . . Parts Built . | . . . . . . . . . . . . . . . . . . . . . . . Authchips . | . . . . . . . . . . . . . . . . . . . . . . . Time . | . . . . . . . . . . . . . . . . . . . . . . . Total Part Build Rating . | . . . . . . . . . . . . . . . . . . . . . . . Parts Repaired 6 | . . . . . . . 3 . 2 . . 1 . . . . . . . . . . Time 202 | . . . . . . . 108 . 64 . . 30 . . . . . . . . . . Parts Recycled . | . . . . . . . . . . . . . . . . . . . . . . . Recycled Matter . | . . . . . . . . . . . . . . . . . . . . . . . Retrieved Matter . | . . . . . . . . . . . . . . . . . . . . . . . Retrieved Components 21 | . 11 . . . . . 9 . . 1 . . . . . . . . . . . . Parts Scanalyzed 9 | . . . 6 . . . 2 . . . . . . 1 . . . . . . . . Part Schematics Acquired 9 | . . . 6 . . . 2 . . . . . . 1 . . . . . . . . Parts Damaged 1 | . . . 1 . . . . . . . . . . . . . . . . . . . Bothacking | -11 -10 -10 -9 -9 -9 -8 -8 -8 -8 -7 -7 -7 -7 -6 -5 -4 -4 -4 -4 -3 -3 -2 ------------ Run | Jun Mat Min Mat Min Exi Min Mat Gar Mat Fac Gar Fac Gar Fac Fac Fac Upp Upp Zhi Pro Res Res Used RIF Installer 3 | . . . . . . . . 1 . . 1 . 1 . . . . . . . . . Robot Detection 1 | . . . . . . . . . . . 1 . . . . . . . . . . . Autooverride 1 | . . . . . . . . . . . . . 1 . . . . . . . . . Robots Hacked 27 | . . . . . 3 . . . . 4 7 4 . . 1 5 . . 3 . . . Non-combat 11 | . . . . . 2 . . . . 3 . 4 . . . 2 . . . . . . Combat 16 | . . . . . 1 . . . . 1 7 . . . 1 3 . . 3 . . . Autooverrided 1 | . . . . . . . . . . . . . . . . 1 . . . . . . Robot Hacks Applied 28 | . . . . . 3 . . . . 4 7 4 . . 1 6 . . 3 . . . parse_system 7 | . . . . . 3 . . . . . . . . . . 1 . . 3 . . . map_walls 1 | . . . . . . . . . . . . 1 . . . . . . . . . . drop_inventory 2 | . . . . . . . . . . 1 . 1 . . . . . . . . . . map_route 2 | . . . . . . . . . . . . 1 . . . 1 . . . . . . reboot_system 1 | . . . . . . . . . . . 1 . . . . . . . . . . . formatsys_low 3 | . . . . . . . . . . 2 . 1 . . . . . . . . . . formatsys_high 12 | . . . . . . . . . . 1 6 . . . 1 4 . . . . . . Relay Couplers Released 34 | . . . . . . . . 13 . . 12 . 5 . . 4 . . . . . . Machine Destruction 26 | . . . . . . . . 9 . . 12 . 5 . . . . . . . . . Programmers 8 | . . . . . . . . 4 . . . . . . . 4 . . . . . . Attached 11 | . . . . . . . . . . 2 3 1 . . 1 4 . . . . . . Fabnet Peak Effective % . | . . . . . . . . . . . . . . . . . . . . . . . Robots Rewired 5 | . . . . . . . . 2 . . . . 3 . . . . . . . . . Allies Hacked 3 | . . . . . . . . . . . . . . 2 . 1 . . . . . . Hacks Repelled . | . . . . . . . . . . . . . . . . . . . . . . . Allies | -11 -10 -10 -9 -9 -9 -8 -8 -8 -8 -7 -7 -7 -7 -6 -5 -4 -4 -4 -4 -3 -3 -2 -------- Run | Jun Mat Min Mat Min Exi Min Mat Gar Mat Fac Gar Fac Gar Fac Fac Fac Upp Upp Zhi Pro Res Res Total Allies 29 | . . 3 . . . . . 2 1 4 6 1 3 1 1 7 . . . . . . Largest Group 5 | . . 3 3 . . . . 2 1 4 5 5 5 5 2 4 . . . . . . Highest-Rated Group 143 | . . 40 40 . . . . 62 10 63 80 80 92 92 50 143 . . . . . . Highest-Rated Ally 58 | . . 16 16 . . . . 31 10 23 23 23 23 23 27 58 . . . . . . Total Orders 46 | . . . . . . . . 2 2 8 14 . 18 1 1 . . . . . . . STAY 24 | . . . . . . . . 1 1 3 9 . 9 1 . . . . . . . . FOLLOW 17 | . . . . . . . . 1 1 3 4 . 8 . . . . . . . . . AID 5 | . . . . . . . . . . 2 1 . 1 . 1 . . . . . . . Ally Attacks 229 | . . . 68 . . . . 17 . 5 36 20 . 14 . 69 . . . . . . Total Damage 3712 | . . . 731 . . . . 339 . 67 375 266 . 300 . 1634 . . . . . . Kills 31 | . . . 12 . . . . 2 . 2 3 3 . 1 . 8 . . . . . . Allies Corrupted 1 | . . . . . . . . . . . . . . 1 . . . . . . . . Allies Melted . | . . . . . . . . . . . . . . . . . . . . . . . Intel | -11 -10 -10 -9 -9 -9 -8 -8 -8 -8 -7 -7 -7 -7 -6 -5 -4 -4 -4 -4 -3 -3 -2 ------- Run | Jun Mat Min Mat Min Exi Min Mat Gar Mat Fac Gar Fac Gar Fac Fac Fac Upp Upp Zhi Pro Res Res Robot Analysis Total 24 | . 4 . 5 . . . 4 . 5 1 . 1 . . . . . . 4 . . . Derelict Logs Recovered 5 | . . 2 . 1 . . . . . . . . . . . . 1 1 . . . . Drone Launches . | . . . . . . . . . . . . . . . . . . . . . . . Drone Recoveries . | . . . . . . . . . . . . . . . . . . . . . . . Exploration | -11 -10 -10 -9 -9 -9 -8 -8 -8 -8 -7 -7 -7 -7 -6 -5 -4 -4 -4 -4 -3 -3 -2 ------------- Run | Jun Mat Min Mat Min Exi Min Mat Gar Mat Fac Gar Fac Gar Fac Fac Fac Upp Upp Zhi Pro Res Res Turns Passed 30483 | 64 1124 1096 1895 1011 556 1074 2671 2238 1130 2646 1336 779 2614 872 759 2601 1108 1231 624 1523 1345 186 Spaces Moved 12245 | 40 552 649 796 371 230 427 914 1014 355 1334 735 391 1264 325 359 925 395 209 180 248 353 179 Core 208 | 12 . . 3 . . . . . . . . . . . . . . . . . 14 179 Treads 11336 | 28 552 649 793 371 230 427 801 468 355 1334 735 391 1264 325 359 925 395 209 180 248 297 . Legs 42 | . . . . . . . . . . . . . . . . . . . . . 42 . Wheels 659 | . . . . . . . 113 546 . . . . . . . . . . . . . . Hover . | . . . . . . . . . . . . . . . . . . . . . . . Flight . | . . . . . . . . . . . . . . . . . . . . . . . Fastest Speed 50 | 50 160 160 160 240 240 240 105 105 165 160 160 160 152 160 156 156 238 405 325 405 50 50 Average Speed 210 | 127 160 160 182 240 240 240 227 185 243 169 160 174 169 224 156 216 254 541 333 603 324 50 Slowest Speed 800 | 160 160 160 800 240 240 240 250 245 245 320 160 240 240 240 156 238 325 730 405 640 410 50 Overloaded Moves . | . . . . . . . . . . . . . . . . . . . . . . . Propulsion Burnouts . | . . . . . . . . . . . . . . . . . . . . . . . Robots Hopped . | . . . . . . . . . . . . . . . . . . . . . . . Cave-ins Triggered . | . . . . . . . . . . . . . . . . . . . . . . . Teleports 1 | . . . . . . . . . . . . . . . . . . . 1 . . . Exploration Rate (%) 49 | 3 96 92 77 77 63 86 82 75 26 24 70 15 93 11 9 20 59 38 62 48 13 9 Regions Visited 22 Branch Regions 8 Pre-discovered Areas 4 | . . . . . 1 . . . . . . . . . . . . . 3 . . . Known Exits Taken 6 | . . . . . . . 1 . 1 1 . 1 . . . 1 . . . . 1 . Unknown Exits Taken 13 | 1 1 1 1 1 1 1 . . . . . . . 1 1 . 1 1 1 1 . . Scrap Searched 9 | . . 1 . 1 . 3 . . . . . . . . . . 2 . . 2 . . Spaces Dug 110 | . . . . . . . . 101 . . . 1 . . . . . . . . 8 . Terrain Destroyed 1103 | . . . 21 14 . . 149 411 5 9 1 4 78 24 28 56 59 147 . 16 80 1 Melee . | . . . . . . . . . . . . . . . . . . . . . . . Projectile 236 | . . . . 14 . . 24 2 5 9 1 4 11 7 15 39 27 19 . 16 42 1 AOE 867 | . . . 21 . . . 125 409 . . . . 67 17 13 17 32 128 . . 38 . Terrain Rammed . | . . . . . . . . . . . . . . . . . . . . . . . Walls Destroyed . | . . . . . . . . . . . . . . . . . . . . . . . Machines Disabled . | . . . . . . . . . . . . . . . . . . . . . . . Actions | -11 -10 -10 -9 -9 -9 -8 -8 -8 -8 -7 -7 -7 -7 -6 -5 -4 -4 -4 -4 -3 -3 -2 --------- Run | Jun Mat Min Mat Min Exi Min Mat Gar Mat Fac Gar Fac Gar Fac Fac Fac Upp Upp Zhi Pro Res Res Total 15540 | 53 705 671 1124 450 235 460 1324 1228 612 1593 840 461 1572 421 488 1377 442 260 204 262 491 267 Wait 1557 | . 74 4 190 40 . 25 226 33 217 125 7 39 132 30 71 217 7 9 . . 47 64 Move 12220 | 39 551 648 795 370 229 426 913 1012 354 1333 733 390 1262 324 358 924 394 208 179 247 352 179 Hop . | . . . . . . . . . . . . . . . . . . . . . . . Pick Up 299 | 8 18 1 31 7 1 . 35 12 15 23 15 4 23 19 10 41 4 5 9 2 14 2 Fast Attach . | . . . . . . . . . . . . . . . . . . . . . . . Attach 150 | 6 5 . 7 . . . 24 11 5 13 6 3 4 5 3 22 3 8 4 3 16 2 Detach 5 | . . . . . . . 2 1 . 1 1 . . . . . . . . . . . Swap 150 | . 5 . 13 6 1 1 8 9 3 19 14 2 11 7 7 28 4 1 4 1 6 . Drop 192 | . 6 . 28 7 1 . 21 5 11 13 18 2 21 10 . 26 4 1 4 . 12 2 Fire 823 | . 46 18 59 20 . 8 95 86 6 56 36 19 92 19 38 110 26 28 4 9 38 10 Melee 3 | . . . . . 3 . . . . . . . . . . . . . . . . . Ram 8 | . . . . . . . . . . . . . . . . . . . . . . 8 Kick . | . . . . . . . . . . . . . . . . . . . . . . . Crush 10 | . . . 1 . . . . . . 3 . . . . 1 4 . . . . 1 . Escape Stasis 54 | . . . . . . . . 48 . . 2 2 . . . 2 . . . . . . Rewire 37 | . . . . . . . . 9 . 1 4 . 19 1 . 3 . . . . . . Trap 32 | . . . . . . . . 2 1 6 4 . 8 6 . . . . . . 5 . Miscellaneous . | . . . . . . . . . . . . . . . . . . . . . . . Route ------- -11/Junkyard -10/Materials (discovered 5 exits: *Mat x3 / [*Min x2]) -10/Mines (discovered 2 exits: *Mat x2) -9/Materials (discovered 6 exits: *Mat x2 / *Min x2 / [*Sto x2]) -9/Mines (discovered 2 exits: *Mat / *Exi) -9/Exiles -8/Mines -8/Materials (discovered 4 exits: *Fac x3 / Gar) -8/Garrison (discovered 3 exits: *Mat x3) -8/Materials (discovered 3 exits: *Fac x3) -7/Factory (discovered 2 exits: *Fac / Gar) -7/Garrison -7/Factory -7/Garrison (discovered 3 exits: *Fac x3) -6/Factory -5/Factory (discovered 3 exits: *Fac / Upp x2) -4/Factory (discovered 3 exits: Res / *Upp x2) -4/Upper Caves -4/Upper Caves -4/Zhirov -3/Proximity Caves -3/Research -2/Research History --------- Turn | Location | Event 7 | -11/Junkyard | Discovered new exit (range 15) 65 | -11/Junkyard | Entered Materials 290 | -10/Materials | Discovered new exit (range 9) 318 | -10/Materials | Build established: Mutant 436 | -10/Materials | Discovered new exit (range 10) 581 | -10/Materials | Discovered new exit (range 10) 704 | -10/Materials | Discovered new exit (range 14) 958 | -10/Materials | Discovered new exit (range 15) 1028 | -10/Materials | Central database locked down 1189 | -10/Materials | Entered Mines 1340 | -10/Mines | Learned Materials security intel 1458 | -10/Mines | Assisted by bots powering up and referring to "LRC-V3" 1604 | -10/Mines | Discovered new exit (range 5) 1666 | -10/Mines | Discovered new exit (range 14) 1761 | -10/Mines | Learned Materials trap positions 2285 | -10/Mines | Entered Materials 2285 | -9/Materials | Accompanied by 3 allies 2285 | -9/Materials | Evolved 2 slots: Utility x1, Weapon x1 2286 | -9/Materials | Loaded intel: 16 trap records 2305 | -9/Materials | Discovered new exit (range 11) 2496 | -9/Materials | Discovered new exit (range 5) 2504 | -9/Materials | Discovered new exit (range 16) 2591 | -9/Materials | Build established: Scavenger-Skirmisher 2706 | -9/Materials | Discovered new exit (range 8) 3252 | -9/Materials | Destroyed 8 combat bots 3274 | -9/Materials | Discovered new exit (range 13) 3347 | -9/Materials | Central database locked down 3508 | -9/Materials | Discovered new exit (range 7) 3745 | -9/Materials | Build established: Tank 4180 | -9/Materials | Entered Mines 4189 | -9/Mines | Met a Derelict who couldn't figure out how to use a Trap Extractor 4387 | -9/Mines | Discovered new exit (range 16) 4639 | -9/Mines | Found a hidden stash of uninstalled traps 4765 | -9/Mines | Met a Derelict shopkeep closing up shop 4957 | -9/Mines | Assembled infested the area 4962 | -9/Mines | Assisted by a Guerilla fighting off Assembled 5133 | -9/Mines | Received a Rocket Launcher from a helpful Derelict 5181 | -9/Mines | Deemed a non-threat by the Exiles lab entrance 5181 | -9/Mines | Discovered new exit (range 5) 5191 | -9/Mines | Entered Exiles 5251 | -9/Exiles | Met 8R-AWN 5300 | -9/Exiles | Met EX-HEX 5370 | -9/Exiles | Met EX-BIN 5399 | -9/Exiles | Aligned with FarCom system 5401 | -9/Exiles | Given EX-Vault access code 5457 | -9/Exiles | Opened EX-Vault 5476 | -9/Exiles | Found PSU Rigger 5525 | -9/Exiles | Warned to stay clear of 0b10 Research branches 5568 | -9/Exiles | Build established: Mutant 5588 | -9/Exiles | Met EX-DEC 5612 | -9/Exiles | Learned location of Zion (-7) 5725 | -9/Exiles | Discovered new exit (range 10) 5747 | -9/Exiles | Left Exiles lab with PSU Rigger 5747 | -9/Exiles | Entered Mines 6053 | -8/Mines | Build established: Skirmisher 6778 | -8/Mines | Discovered new exit (range 11) 6821 | -8/Mines | Entered Materials 6821 | -8/Materials | Evolved 2 slots: Utility x2 7616 | -8/Materials | Lost 6 parts (2n2u2w) 7621 | -8/Materials | First assault squad dispatched 7700 | -8/Materials | Destroyed 18 combat bots 7926 | -8/Materials | Central database locked down 8182 | -8/Materials | Discovered new exit (range 13) 8574 | -8/Materials | Discovered new exit (range 9) 8815 | -8/Materials | Build established: Mutant 8853 | -8/Materials | Repaired Plasma Cannon 8886 | -8/Materials | Repaired Lgt. Treads 8926 | -8/Materials | Repaired Imp. Heat Sink 9386 | -8/Materials | Identified exit to Factory 9491 | -8/Materials | Identified exit to Garrison 9492 | -8/Materials | Entered Garrison 9554 | -8/Garrison | Destroyed 7 combat bots 9561 | -8/Garrison | Build established: Skirmisher 9566 | -8/Garrison | Triggered checkpoint 9656 | -8/Garrison | Core integrity fell below 50% 9675 | -8/Garrison | Garrison Relay disabled 9764 | -8/Garrison | Triggered checkpoint 9774 | -8/Garrison | Triggered checkpoint 9796 | -8/Garrison | Triggered checkpoint 9996 | -8/Garrison | Triggered checkpoint 10096 | -8/Garrison | Discovered new exit (range 13) 10360 | -8/Garrison | Triggered checkpoint 10395 | -8/Garrison | Triggered checkpoint 10513 | -8/Garrison | Discovered new exit (range 11) 10564 | -8/Garrison | Triggered checkpoint 10586 | -8/Garrison | Garrison Relay disabled 10877 | -8/Garrison | Build established: Scavenger-Mutant 10966 | -8/Garrison | Triggered checkpoint 10980 | -8/Garrison | Core integrity fell below 20% 11515 | -8/Garrison | Phase Generator disabled 11597 | -8/Garrison | Installed Relay Interface Framework 11717 | -8/Garrison | Discovered new exit (range 3) 11728 | -8/Garrison | Identified exit to Materials 11730 | -8/Garrison | Entered Materials 11810 | -8/Materials | Repaired Lgt. Treads 11850 | -8/Materials | Repaired Arm. Treads 12327 | -8/Materials | Build established: Scavenger-Skirmisher 12349 | -8/Materials | Central database locked down 12860 | -8/Materials | Entered Factory 12860 | -7/Factory | Accompanied by 1 ally 12860 | -7/Factory | Evolved 2 slots: Propulsion x1, Utility x1 13515 | -7/Factory | Discovered new exit (range 5) 13570 | -7/Factory | Garrison activated, responded to threat 13830 | -7/Factory | Cargo convoy interrupted 13924 | -7/Factory | Build established: Hacker-Skirmisher 14930 | -7/Factory | Found Prototype Launcher 14931 | -7/Factory | Identified Rocket Array 15274 | -7/Factory | Build established: Scavenger-Mutant 15504 | -7/Factory | Identified exit to Garrison 15506 | -7/Factory | Entered Garrison 15506 | -7/Garrison | Accompanied by 2 allies 15521 | -7/Garrison | Expanded RIF knowledge: Robot Detection 15574 | -7/Garrison | Triggered checkpoint 15589 | -7/Garrison | Heavy support dispatched to Factory 15634 | -7/Garrison | Garrison Relay disabled 15806 | -7/Garrison | Triggered checkpoint 15830 | -7/Garrison | Triggered checkpoint 15947 | -7/Garrison | Triggered checkpoint 15964 | -7/Garrison | Triggered checkpoint 16061 | -7/Garrison | Discovered new exit (range 9) 16128 | -7/Garrison | Triggered checkpoint 16232 | -7/Garrison | Garrison Relay disabled 16534 | -7/Garrison | Triggered checkpoint 16650 | -7/Garrison | Garrison Relay disabled 16842 | -7/Garrison | Entered Factory 16842 | -7/Factory | Accompanied by 5 allies 16956 | -7/Factory | Core integrity fell below 50% 17257 | -7/Factory | Build established: Scavenger-Skirmisher 17427 | -7/Factory | Repaired Broken Mic. Nuclear Core 17618 | -7/Factory | Identified exit to Garrison 17621 | -7/Factory | Entered Garrison 17621 | -7/Garrison | Accompanied by 4 allies 17668 | -7/Garrison | Triggered checkpoint 17704 | -7/Garrison | Garrison Relay disabled 17740 | -7/Garrison | Phase Generator disabled 18272 | -7/Garrison | Triggered checkpoint 18280 | -7/Garrison | Triggered checkpoint 18560 | -7/Garrison | Build established: Scavenger-Gunner 18602 | -7/Garrison | Triggered checkpoint 18654 | -7/Garrison | Triggered checkpoint 18838 | -7/Garrison | Discovered new exit (range 11) 18878 | -7/Garrison | Triggered checkpoint 18934 | -7/Garrison | Triggered checkpoint 19282 | -7/Garrison | Expanded RIF knowledge: Autooverride 19414 | -7/Garrison | Build established: Commander-Gunner 19564 | -7/Garrison | Triggered checkpoint 19629 | -7/Garrison | Discovered new exit (range 15) 19688 | -7/Garrison | Triggered checkpoint 19739 | -7/Garrison | Spotted B-75 Beast 19825 | -7/Garrison | Destroyed B-75 Beast 20204 | -7/Garrison | Discovered new exit (range 14) 20235 | -7/Garrison | Entered Factory 20235 | -6/Factory | Accompanied by 5 allies 20235 | -6/Factory | Evolved 2 slots: Power x1, Propulsion x1 20585 | -6/Factory | First assault squad dispatched 20633 | -6/Factory | Build established: Hauler-Gunner 20899 | -6/Factory | Discovered new exit (range 9) 21107 | -6/Factory | Entered another Factory area 21107 | -5/Factory | Accompanied by 2 allies 21107 | -5/Factory | Evolved 2 slots: Propulsion x2 21223 | -5/Factory | Identified exit to Upper Caves 21382 | -5/Factory | Build established: Hauler-Skirmisher 21707 | -5/Factory | First assault squad dispatched 21733 | -5/Factory | Discovered new exit (range 15) 21866 | -5/Factory | Entered another Factory area 21866 | -4/Factory | Evolved 2 slots: Utility x2 21963 | -4/Factory | Build established: Hauler-Mutant 22007 | -4/Factory | Found Quantum Capacitor 22208 | -4/Factory | Discovered new exit (range 16) 22475 | -4/Factory | P-70 Sage assimilated allied Administrator 7a 22724 | -4/Factory | Identified exit to Upper Caves 22919 | -4/Factory | Fabricated G-50 Soldier (x3) 22950 | -4/Factory | Garrison activated, responded to threat 22981 | -4/Factory | Build established: Scavenger-Mutant 23259 | -4/Factory | Found Hvy. Reactive Plating 23466 | -4/Factory | Build established: Hauler-Tank 23471 | -4/Factory | System corruption reached 10% 23511 | -4/Factory | Garrison activated, responded to threat 23654 | -4/Factory | First assault squad dispatched 23810 | -4/Factory | Discovered exit to Upper Caves (range 12) 23954 | -4/Factory | Build established: Bothacker-Tank 24129 | -4/Factory | Discovered new exit (range 78) 24467 | -4/Factory | Entered Upper Caves 24589 | -4/Upper Caves | Learned location of 1 exit from Research 24993 | -4/Upper Caves | Build established: Hauler-Mutant 25277 | -4/Upper Caves | Attracted the attention of an 0b10 base 25430 | -4/Upper Caves | Build established: Hauler-Tank 25553 | -4/Upper Caves | Discovered new exit (range 9) 25575 | -4/Upper Caves | Entered another Upper Caves area 25756 | -4/Upper Caves | Learned Research emergency access door positions 25878 | -4/Upper Caves | Build established: Hauler-Mutant 26034 | -4/Upper Caves | Encountered a Warlord checkpoint 26393 | -4/Upper Caves | Core integrity fell below 50% 26475 | -4/Upper Caves | Lost 6 parts (1p2u3w) 26754 | -4/Upper Caves | Build established: Scavenger-Tank 26773 | -4/Upper Caves | Discovered new exit (range 9) 26806 | -4/Upper Caves | Entered Zhirov 26808 | -4/Zhirov | Discovered new exit (range 3) 26866 | -4/Zhirov | Met Zhirov 26931 | -4/Zhirov | Learned location of Quarantine (-3) 26931 | -4/Zhirov | Learned location of Testing (-2) 26931 | -4/Zhirov | Learned location of Command (-1) 26993 | -4/Zhirov | Zhirov requested help retrieving the SGEMP Prototype 27041 | -4/Zhirov | Found Alien Artifact 27042 | -4/Zhirov | Identified Transdimensional Reconstructor 27042 | -4/Zhirov | Warped through subspace 27271 | -4/Zhirov | Found Alien Artifact 27272 | -4/Zhirov | Identified Integrated Reactor 27272 | -4/Zhirov | Installed Integrated Reactor, increased core energy generation (+10) 27351 | -4/Zhirov | Build established: Hauler-Mutant 27430 | -4/Zhirov | Entered Proximity Caves 27442 | -3/Proximity Caves | Spotter reported a threat 27443 | -3/Proximity Caves | Spotter reported a threat 27760 | -3/Proximity Caves | Spotter reported a threat 27772 | -3/Proximity Caves | Spotter reported a threat 27825 | -3/Proximity Caves | Spotter reported a threat 27878 | -3/Proximity Caves | Spotter reported a threat 27912 | -3/Proximity Caves | Spotter reported a threat 27937 | -3/Proximity Caves | Spotter reported a threat 27976 | -3/Proximity Caves | Spotter reported a threat 27990 | -3/Proximity Caves | Spotter reported a threat 28046 | -3/Proximity Caves | Spotter reported a threat 28139 | -3/Proximity Caves | Spotter reported a threat 28308 | -3/Proximity Caves | Spotter reported a threat 28399 | -3/Proximity Caves | Spotter reported a threat 28747 | -3/Proximity Caves | Spotter reported a threat 28798 | -3/Proximity Caves | Spotter reported a threat 28804 | -3/Proximity Caves | Spotted B-86 Titan 28808 | -3/Proximity Caves | Destroyed B-86 Titan 28850 | -3/Proximity Caves | Build established: Hauler-Gunner 28892 | -3/Proximity Caves | Discovered new exit (range 16) 28953 | -3/Proximity Caves | Entered Research 28953 | -3/Research | Evolved 2 slots: Utility x2 28954 | -3/Research | Identified exit to Research 29237 | -3/Research | Search patrols dispatched 29262 | -3/Research | Build established: Scavenger-Tank 29453 | -3/Research | Search patrols dispatched 29705 | -3/Research | Found Gamma Bomb Array 29733 | -3/Research | Search patrols dispatched 30062 | -3/Research | Garrison activated, responded to threat 30116 | -3/Research | Lost 4 parts (1n3u) 30162 | -3/Research | System corruption reached 10% 30233 | -3/Research | Garrison activated, responded to threat 30260 | -3/Research | Core integrity fell below 50% 30298 | -3/Research | Entered another Research area 30298 | -2/Research | Evolved 2 slots: Power x1, Propulsion x1 30323 | -2/Research | Lost 17 parts (3p4n6u4w) 30446 | -2/Research | Core integrity fell below 50% 30458 | -2/Research | Core integrity fell below 20% 30484 | -2/Research | Destroyed by S-43 Plague with Heavy Machine Gun Last Messages --------------- 30438_ Slammed into U-05 Engineer. 30440_ System corrupted: Component data lost. 30440_ Slammed into W-44 Eye. 30443_ Acquired 80 matter. 30447_ U-05 Engineer builds a Door. 30453_ Slammed into K-01 Serf. 30456_ K-01 Serf knocked back. 30456_ W-44 Eye sends out distress signal. 30457_ Slammed into U-05 Engineer. 30457_ P-80 Master resets S-43 Plague, system corruption cleaned. 30458_ Slammed into U-05 Engineer. 30465_ Destroyed Xenon Bombardment Thruster. 30471_ Destroyed Lgt. Antimatter Reactor. 30473_ S-43 Plague destroyed. 30475_ ALERT: Hostiles spotted, dispatching reinforcements to Terminal R005. 30479_ Xenon Bombardment Thruster melted. 30479_ S-43 Plague destroyed. 30482_ Lgt. Quantum Reactor destroyed. [Achievement: I Think I Know What's Going On] Map ----- +----------------------------------------------------+ | ?????????????????????????????????????????????????? | | ?????????????????????????????????????????????????? | | ?????????????????????????????????????????????????? | | ?????????????????????????????????????????????????? | | ?????????????????????????????????????????????????? | | ?????????????????????????????????????????????????? | | ?????????????????????????????????????????????????? | | ???????????????????????T" ???????????????????????? | | ??????????????????????? ??????????????????????? | | ??????????????????????? ??????????????????????? | | ??????????????????????? ??????????????????????? | | ??????????????????????#A #????? ??????????????? | | ??????????????????????# #???? ?????????????? | | ??????????????????????# k#???? ?????????????? | | ??????????????????????#Rw #??? ????????????? | | ?????????????????????##R #### ????????????? | | ?????????????????????# ???????????? | | ?????????????????????# ???????????? | | ?????????????????????# ???????????? | | ?????????????????????# ??????????? | | ?????????????????????# ??????????? | | ?????????????????????# ?????????? | | ????????????????????##ssp% ?????????? | | ????????????????????# Y%ss ?????????? | | ????????????????????#p##s;##########?????????????? | | ????????????????????#s#%=@ ! #????????????????? | | ????????????????????#w#!* #????????????????? | | ????????????????????#%# ] #????????????????? | | ????????????????????# # ! #????????????????? | | ??????????????????### ###########????????????????? | | ??????????????????# % # =#?????????????????? | | ??????????????????# # #?????????????????? | | ??????????????????# " #?????????????????? | | ??????????????????#! # #?????????????????? | | ??????????????????# # #?????????????????? | | ??????????????????## ##? #?????????????????? | | ?????????????????? # w #########?????????????????? | | ???????????????????" + * ! #?????????????????? | | ???????????????????# # #?????????????????? | | ???????????????????# # ! #?????????????????? | | ???????????????????# #?#######?????????????????? | | ???????????????????# ###########???????????????? | | ?????????????#+##### #???????????????? | | ?????????????# #???????????????? | | ?????????????# ##### #???????????????? | | ????????????????#####/#########+##???????????????? | | ????????????????# #??????????????????????? | | ????????????????# #??????????????????????? | | ????????????????# #??????????????????????? | | ????????????????# #??????????????????????? | +----------------------------------------------------+ Best States ------------- Heat Dissipation 103 Energy Generation 51 Energy Capacity 530 Matter Stores 300 Matter Capacity 300 Sight Range 22 Terrain Scan Density 10 Armor Coverage 825 Resistance: KI 40 Resistance: TH 30 Power Shielding 33 Utility Shielding 90 Weapon Cycling 20 Phase Shifting 15 Evasion (%) 55 Targeting Accuracy 8 Core Analysis 6 Recoil Reduction 6 Particle Charging 30 Offensive Hacking 20 Relay Coupler Types 2 Relay Coupler Value 43 Authchip Count 1 Item Schematics ----------------- Hacking Suite | -9/Materials | Scanalyzed Cooling System | -9/Materials | Scanalyzed Imp. Datajack | -9/Materials | Scanalyzed Grenade Launcher | -9/Materials | Scanalyzed Imp. Heat Sink | -9/Materials | Scanalyzed Lrg. Storage Unit | -9/Materials | Scanalyzed Hvy. Rocket Launcher | -8/Materials | Scanalyzed Arm. Treads | -8/Materials | Scanalyzed Triangulator | -7/Factory | Hacked Adv. Medium Treads | -6/Factory | Scanalyzed Assault Drone Bay | -4/Zhirov | Free Exp. Heat Sink | -4/Zhirov | Free Exp. Optical Array | -4/Zhirov | Free Imp. Arc Thrower | -4/Zhirov | Free Robot Schematics ------------------ None Fabricated ------------ G-50 Soldier | x3 | -4/Factory | Preloaded, Authchip Alien Tech Used ----------------- Transdimensional Reconstructor Integrated Reactor Achievements -------------- I Think I Know What's Going On Packrat The Science Guy Challenges ------------ None Game ------ Seed HoverNeutrinoBarrier Manual? 0 Play Time 03:29:39 Cumulative 146.2 hours Start 2023.07.13 @ 21:54:17 End 2023.07.14 @ 01:36:02 Sessions 1 Manual Loads 0 Difficulty Rogue Special Mode None Game No. 129 Rogue 129 Adventurer 0 Explorer 0 Win Type - Total 1 Types 1/0/0/0/0/0/0/0/0 Lore% 54 Gallery% 65 Achievement% 52 Wizard Run 0 Options --------- ASCII 0 Keyboard 0 Movement Numpad Keybinds 0 Fullscreen 2 Font 18/Smallcaps Map View 76x50 Tactical HUD 1 Map Filters NONE Filters NONE Steam 1 RUN: f710c8f2-2466-4228-8b04-3d4321c8623e